Cogmind - Beta 13 @@@ ROGUE MODE // 2024.07.14 @ 21:20:17 Player: Sionnis Result: Destroyed by 8R-AWN with 8R-AWN's Boregun Performance ------------- Evolutions (0) 0 Regions Visited (3) 600 Robots Destroyed (21) 105 Value Destroyed (381) 381 Prototype IDs (24) 480 Alien Tech Used (0) 0 Bonus (-857) -857 TOTAL SCORE: 709 Bonus ------- Follower Combat Kills 54 Aligned with FarCom 300 Friendly Fire -1211 Cogmind --------- Core Integrity 0/250 Matter 184/300 Energy 250/250 System Corruption 0% Temperature Cool (4) Movement Treading (160) Location -10/Exiles Parts ------- > --- POWER (1) -------- Ion Engine > --- PROPULSION (2) --- Light Treads Light Treads > --- UTILITY (2) ------ Medium Armor Plating Medium Armor Plating > --- WEAPON (2) ------- Light Assault Rifle Heavy Assault Rifle > --- INVENTORY (5) ---- Light Assault Rifle Light Assault Rifle Light Assault Rifle Grenade Launcher Peak State ------------ > --- POWER ------------ Ion Engine > --- PROPULSION ------- Light Treads Light Treads > --- UTILITY ---------- Huge Storage Unit YI-UF0's Bottomless Matter Pit > --- WEAPON ----------- Light Assault Rifle Heavy Assault Rifle > --- INVENTORY -------- Ion Engine Light Nuclear Core Light Treads Light Treads Light Treads Armored Wheel High-capacity Matter Pod High-capacity Matter Pod Sensor Array Signal Interpreter Targeting Computer Medium Armor Plating Medium Armor Plating Medium Armor Plating Medium Armor Plating Light Assault Rifle Light Assault Rifle Light Assault Rifle Light Assault Rifle Grenade Launcher Grenade Launcher Grenade Launcher Grenade Launcher Datajack [Rating: 19] Favorites ----------- Power Ion Engine Engine Ion Engine Power Core Light Nuclear Core Propulsion Light Treads Treads Light Treads Utility Huge Storage Unit Storage Huge Storage Unit Processor Targeting Computer Protection Medium Armor Plating Weapon Light Assault Rifle Ballistic Gun Light Assault Rifle Launcher Grenade Launcher Build | -11 -10 -10 -10 ------- Run | Yrd Mat Min Exi Slots Evolved . | . . . . Power . | . . . . Propulsion . | . . . . Utility . | . . . . Weapon . | . . . . Parts Attached 25 | 6 9 3 7 Power 3 | 1 2 . . Engine 2 | 1 1 . . Core 1 | . 1 . . Reactor . | . . . . Propulsion 6 | 2 2 . 2 Treads 6 | 2 2 . 2 Leg . | . . . . Wheel . | . . . . Hover . | . . . . Flight . | . . . . Utility 10 | 1 4 2 3 Device . | . . . . Storage 4 | 1 2 1 . Processor 1 | . 1 . . Hackware . | . . . . Protection 5 | . 1 1 3 Artifact . | . . . . Weapon 6 | 2 1 1 2 Energy Gun . | . . . . Energy Cannon . | . . . . Ballistic Gun 5 | 2 1 1 1 Ballistic Cannon . | . . . . Launcher 1 | . . . 1 Special Weapon . | . . . . Impact Weapon . | . . . . Slashing Weapon . | . . . . Piercing Weapon . | . . . . Special Melee Weapon . | . . . . Unidentified Prototypes 1 | . . 1 . Parts Lost 5 | . 1 . 4 Power . | . . . . Propulsion 2 | . . . 2 Utility 2 | . . . 2 Weapon 1 | . 1 . . Highest Loss Streak 4 | . 1 . 4 To Critical Strikes 1 | . . . 1 Average Slot Usage (%) 99 | . 98 100 100 Engine 14 | . 14 14 14 Treads 28 | . 28 28 28 Storage 13 | . 14 14 11 Processor 2 | . 6 . . Protection 11 | . 5 13 16 Ballistic Gun 26 | . 28 28 24 Launcher 1 | . . . 3 Naked Turns . | . . . . Heaviest Build 96 | 13 95 96 96 Greatest Support 40 | 40 40 40 40 Greatest Overweight (x) 4 | 4 2 2 2 Average Overweight (x) 1 | . 1 2 1 Largest Inventory Capacity 25 | 8 25 25 25 Average Capacity 22 | 7 21 25 21 Most Carried 25 | 2 18 24 25 Average Carried 17 | 1 13 19 20 Final Capacity 25 | 8 25 25 5 Final Carried 22 | 2 16 22 4 Class Distribution -------------------- 98% | Mutant Dominant Class ---------------- Mutant | -10/Materials Mutant | -10/Mines Mutant | -10/Exiles Resources | -11 -10 -10 -10 ----------- Run | Yrd Mat Min Exi Matter Collected 1807 | 207 861 569 170 Remotely . | . . . . Salvage Created 761 | . 482 219 60 Parts 44 | . 33 10 1 Haulers Intercepted 2 | . 2 . . Recyclers Shooed 3 | . 1 2 . Parts Field Recycled . | . . . . Retrieved Matter . | . . . . Parts Self-Destructed . | . . . . Prevented . | . . . . Kills | -11 -10 -10 -10 ------- Run | Yrd Mat Min Exi Combat Hostiles Destroyed 14 | . 9 4 1 Guns 13 | . 9 4 . AOE 1 | . . . 1 Classes Destroyed 8 | . 6 1 1 Tunneler 1 | . 1 . . Hauler 2 | . 2 . . Operator 1 | . 1 . . Watcher 2 | . 2 . . Swarmer 6 | . 3 3 . Grunt 7 | . 6 . 1 Sentry 1 | . . 1 . Assembled 1 | . . . 1 Best Kill Streak 5 | . 5 3 1 Combat Bots Only 3 | . 3 3 1 Max Kills in Single Turn 1 | . 1 1 1 Gunslinging . | . . . . Exploded 1 | . . . 1 Melee . | . . . . Uniques/NPCs Destroyed 1 | . . 1 . YI-UF0 (-10/Mines) Combat | -11 -10 -10 -10 -------- Run | Yrd Mat Min Exi Hostile Shots Fired 152 | . 83 15 54 Missed 35 | . 20 2 13 Damage Taken 1500 | . 676 121 703 Core 256 | . 118 6 132 Absorbed by Shields . | . . . . Regen/Repaired (Parts) 130 | . 130 . . Core Remaining (%) 100 | 100 . . . Volleys Fired 111 | . 57 26 28 Largest 2 | . 2 2 2 Hottest 43 | . 40 43 43 Shots Fired 217 | . 113 52 52 Gun 213 | . 113 52 48 Cannon . | . . . . Launcher 4 | . . . 4 Special . | . . . . Kinetic 213 | . 113 52 48 Thermal . | . . . . Explosive 4 | . . . 4 Electromagnetic . | . . . . Robot Hit Streak 12 | . 12 5 8 Robot Miss Streak 6 | . 3 6 3 Penetration Max . | . . . . Secondary Targets 2 | . 2 . . Max Gunslinging Chain 1 | . 1 . . Shots Hit Robots 142 | . 77 28 37 Core Hits 43 | . 25 12 6 Critical Kills . | . . . . Critical Parts Destroyed 2 | . 2 . . Critical Strikes 2 | . 2 . . Destroy 2 | . 2 . . Melee Attacks . | . . . . Impact . | . . . . Slashing . | . . . . Piercing . | . . . . Sneak Attacks . | . . . . Combat Hostiles . | . . . . Follow-up Attacks . | . . . . Damage Inflicted 1653 | . 857 317 479 Guns 1555 | . 846 316 393 Cannons . | . . . . Explosions 86 | . . . 86 Melee . | . . . . Ramming 12 | . 11 1 . Kinetic 1555 | . 846 316 393 Thermal . | . . . . Explosive 86 | . . . 86 Electromagnetic . | . . . . Impact . | . . . . Slashing . | . . . . Piercing . | . . . . Highest Corruption . | . . . . Average Corruption . | . . . . Corruption Purged . | . . . . Corruption Blocked . | . . . . Overload Shots . | . . . . Overflow Damage . | . . . . Projectiles . | . . . . Explosions . | . . . . Melee . | . . . . Knockbacks . | . . . . Impact . | . . . . Kinetic . | . . . . Secondary . | . . . . Self-Inflicted Damage . | . . . . Shots . | . . . . Rammed 2 | . 1 1 . Targets Rammed 2 | . 1 1 . Kicked . | . . . . Crushed . | . . . . Highest Temperature 33 | . 33 16 16 Average Temperature 6 | . 8 6 3 Received Heat Transfer 353 | . 324 9 20 Siege Activations . | . . . . Robots Corrupted . | . . . . Combat Hostiles . | . . . . Parts Fried . | . . . . Impact Corruptions . | . . . . Robots Melted . | . . . . Combat Hostiles . | . . . . Parts Melted . | . . . . Heat Transferred . | . . . . Parts Sabotaged . | . . . . Parts Stolen . | . . . . Parts Stripped . | . . . . Power Chain Reactions . | . . . . Alert | -11 -10 -10 -10 ------- Run | Yrd Mat Min Exi Peak Influence 155 | . 155 121 . Initial 5 | . . 5 . Average 40 | . 44 38 . Maximum Alert Level . | . . . . Low Security (%) 100 | 100 100 100 . Level 1 . | . . . . Level 2 . | . . . . Level 3 . | . . . . Level 4 . | . . . . Level 5 . | . . . . High Security . | . . . . Max Security . | . . . . Squads Dispatched 3 | . 3 . . Investigation 2 | . 2 . . Extermination . | . . . . Reinforcement 1 | . 1 . . Assault . | . . . . Garrison . | . . . . Intercept . | . . . . Searches Triggered . | . . . . Construction Impeded . | . . . . Haulers Reinforced . | . . . . Active Scanning Responses . | . . . . Cargo Convoy Interrupts . | . . . . Stealth | -11 -10 -10 -10 --------- Run | Yrd Mat Min Exi Distress Signals 1 | . 1 . . Communications Jammed . | . . . . Distress Signals . | . . . . Times Spotted 31 | . 21 8 2 Peak Tracking Total 9 | . 5 3 9 Tactical Retreats 6 | . 6 . . Traps | -11 -10 -10 -10 ------- Run | Yrd Mat Min Exi Traps Triggered 2 | . 2 . . Indirectly . | . . . . Trap Hack Attempts . | . . . . Triggered . | . . . . Disarmed . | . . . . Reprogrammed . | . . . . Reused . | . . . . Traps Extracted . | . . . . Installed . | . . . . Triggered . | . . . . Machines | -11 -10 -10 -10 ---------- Run | Yrd Mat Min Exi Machines Disabled 4 | . . 1 3 Max in Single Turn 1 | . . . 1 Machines Repaired . | . . . . Machines Dismantled . | . . . . Machines Sabotaged . | . . . . Overloaded Fab Kills . | . . . . Hacking | -11 -10 -10 -10 --------- Run | Yrd Mat Min Exi Machines Accessed 7 | . 6 . 1 Terminals 4 | . 4 . . Fabricators . | . . . . Repair Stations 1 | . 1 . . Recycling Units 1 | . 1 . . Scanalyzers . | . . . . Garrison Access . | . . . . Total Hacks 17 | . 16 . 1 Successful 9 | . 8 . 1 Failed 8 | . 8 . . Catastrophic 1 | . 1 . . Database Lockouts . | . . . . Manual 12 | . 11 . 1 Terminals 11 | . 11 . . Fabricators . | . . . . Repair Stations 2 | . 2 . . Recycling Units 3 | . 3 . . Scanalyzers . | . . . . Garrison Access . | . . . . Terminal Hacks 3 | . 2 . 1 Robot Analysis 2 | . 2 . . Derelict Proto ID Bank 1 | . . . 1 Fabricator Hacks . | . . . . Repair Station Hacks 2 | . 2 . . Scan Component 1 | . 1 . . Repair 1 | . 1 . . Recycling Unit Hacks 1 | . 1 . . Retrieve Components 1 | . 1 . . Scanalyzer . | . . . . Garrison Access Hacks . | . . . . Unauthorized Hacks 3 | . 3 . . Terminals 3 | . 3 . . Botnet 2 | . 2 . . Operators 1 | . 1 . . Fabricators . | . . . . Repair Stations . | . . . . Recycling Units . | . . . . Scanalyzers . | . . . . Garrison Access . | . . . . Data Cores Recovered 1 | . 1 . . Used . | . . . . Hacking Detections 5 | . 5 . . Full Trace Events 1 | . 1 . . Feedback Events . | . . . . Feedback Blocked . | . . . . Robot Schematics Acquired . | . . . . Robots Built . | . . . . Authchips . | . . . . Time . | . . . . Total Robot Build Rating . | . . . . Part Schematics Acquired . | . . . . Parts Built . | . . . . Authchips . | . . . . Time . | . . . . Total Part Build Rating . | . . . . Parts Repaired 1 | . 1 . . Time 26 | . 26 . . Parts Recycled . | . . . . Recycled Matter . | . . . . Retrieved Matter . | . . . . Retrieved Components 1 | . 1 . . Parts Scanalyzed . | . . . . Part Schematics Acquired . | . . . . Parts Damaged . | . . . . Bothacking | -11 -10 -10 -10 ------------ Run | Yrd Mat Min Exi Used RIF Installer . | . . . . Robots Hacked . | . . . . Non-combat . | . . . . Combat . | . . . . Robot Hacks Applied . | . . . . Relay Couplers Released . | . . . . Fabnet Peak Effective % . | . . . . Robots Rewired . | . . . . Allies Hacked . | . . . . Hacks Repelled . | . . . . Allies | -11 -10 -10 -10 -------- Run | Yrd Mat Min Exi Total Allies 3 | . . 3 . Largest Group 3 | . . 3 2 Highest-Rated Group 40 | . . 40 32 Highest-Rated Ally 16 | . . 16 16 Total Orders 2 | . . . 2 STAY 2 | . . . 2 Ally Attacks 32 | . . 28 4 Total Damage 204 | . . 200 4 Kills 4 | . . 4 . Allies Corrupted . | . . . . Allies Melted . | . . . . Intel | -11 -10 -10 -10 ------- Run | Yrd Mat Min Exi Robot Analysis Total 2 | . 2 . . Derelict Logs Recovered 1 | . . 1 . Drone Launches . | . . . . Drone Recoveries . | . . . . Exploration | -11 -10 -10 -10 ------------- Run | Yrd Mat Min Exi Turns Passed 4679 | 60 1838 1471 1310 Spaces Moved 1447 | 33 584 432 398 Core 11 | 11 . . . Treads 1436 | 22 584 432 398 Legs . | . . . . Wheels . | . . . . Hover . | . . . . Flight . | . . . . Fastest Speed 50 | 50 160 320 160 Average Speed 289 | 150 269 320 296 Slowest Speed 320 | 250 320 320 320 Overloaded Moves . | . . . . Propulsion Burnouts . | . . . . Robots Hopped . | . . . . Cave-ins Triggered . | . . . . Exploration Rate (%) 55 | 3 88 62 67 Regions Visited 3 Branch Regions 2 Pre-discovered Areas . | . . . . Known Exits Taken . | . . . . Unknown Exits Taken 3 | 1 1 1 . Scrap Searched 2 | . . 2 . Spaces Dug . | . . . . Terrain Destroyed 16 | . . . 16 Melee . | . . . . Projectile . | . . . . AOE 16 | . . . 16 Terrain Rammed . | . . . . Walls Destroyed . | . . . . Machines Disabled . | . . . . Actions | -11 -10 -10 -10 --------- Run | Yrd Mat Min Exi Total 1754 | 40 748 475 491 Wait 98 | . 69 4 25 Move 1444 | 32 583 431 398 Hop . | . . . . Pick Up 39 | 2 21 8 8 Fast Attach 10 | 6 1 . 3 Attach 3 | . 1 . 2 Detach . | . . . . Swap 12 | . 7 3 2 Drop 35 | . 8 2 25 Fire 111 | . 57 26 28 Melee . | . . . . Ram . | . . . . Kick . | . . . . Crush 2 | . 1 1 . Escape Stasis . | . . . . Rewire . | . . . . Trap . | . . . . Miscellaneous . | . . . . Route ------- -11/Scrapyard -10/Materials (discovered 4 exits: [*Mat x2] / [*Min x2]) -10/Mines (discovered 3 exits: [*Mat x2] / *Exi) -10/Exiles History --------- Turn | Location | Event 16 | -11/Scrapyard | Discovered new exit (range 15) 61 | -11/Scrapyard | Entered Materials 278 | -10/Materials | Discovered new exit (range 8) 318 | -10/Materials | Build established: Mutant 473 | -10/Materials | Discovered new exit (range 3) 635 | -10/Materials | Repaired Lgt. Treads 661 | -10/Materials | Derelicts attacked the area 955 | -10/Materials | Discovered new exit (range 9) 1502 | -10/Materials | Discovered new exit (range 14) 1899 | -10/Materials | Entered Mines 1961 | -10/Mines | Discovered new exit (range 11) 2012 | -10/Mines | Assisted by bots powering up and referring to "LRC-V3" 2220 | -10/Mines | Deemed a non-threat by the Exiles lab entrance 2220 | -10/Mines | Discovered new exit (range 5) 2713 | -10/Mines | Learned 2 Materials zone layouts 2781 | -10/Mines | YI-UF0 nonchalantly dropped a Grenade Launcher on the ground 2863 | -10/Mines | Murdered YI-UF0 2863 | -10/Mines | Destroyed YI-UF0 2894 | -10/Mines | Found Prototype Storage 2898 | -10/Mines | Identified YI-UF0's Bottomless Matter Pit 3107 | -10/Mines | Discovered new exit (range 8) 3370 | -10/Mines | Entered Exiles 3370 | -10/Exiles | Accompanied by 2 allies 3453 | -10/Exiles | Met 8R-AWN 3498 | -10/Exiles | Met EX-HEX 3604 | -10/Exiles | Met EX-BIN 3639 | -10/Exiles | Aligned with FarCom system 3642 | -10/Exiles | Given EX-Vault access code 3716 | -10/Exiles | Opened EX-Vault 3752 | -10/Exiles | Found Cloak of Protection 3813 | -10/Exiles | Warned to stay clear of 0b10 Research branches 4057 | -10/Exiles | Met EX-DEC 4513 | -10/Exiles | Attacked by the Exiles 4610 | -10/Exiles | Core integrity fell below 50% 4651 | -10/Exiles | Core integrity fell below 20% 4680 | -10/Exiles | Destroyed by 8R-AWN with 8R-AWN's Boregun Last Messages --------------- Critical hit (Destroy). HV Slug penetrates Earth. Acquired Lgt. Treads. Penetrated by HV Slug. HV Slug penetrates Earth. Penetrated by HV Slug. HV Slug penetrates Earth. HV Slug penetrates Wall. HV Slug penetrates Earth. Penetrated by HV Slug. Critical hit (Destroy). HV Slug penetrates Earth. Destroyed Prototype Protection. Penetrated by HV Slug. HV Slug penetrates Wall. HV Slug penetrates Earth. Penetrated by HV Slug. Critical hit (Destroy). HV Slug penetrates Earth. Penetrated by HV Slug. Map ----- +----------------------------------------------------+ | ?????????????????????????????????????????????????? | | ?????????????????????????????????????????????????? | | ?????????????????????????????????????????????????? | | ?????????????????????????????????????????????????? | | ?????????????????????????????????????????????????? | | ?????????????????????????????????????????????????? | | ?????????????????????????????????????????????????? | | ?????????????????????????????????????????????????? | | ?????????????????????????????????????????????????? | | ?????????????????????????????????????????????????? | | ?????????????????????????????????????????????????? | | ??????????????????????????????#######????????????? | | ???????????????? ######???????#!!! "#????????????? | | ???????????????? #""#??????# "#????????????? | | ???????????????? ??????# "#????????????? | | ??????????????? #????## ""#????????????? | | ??????????????? #####" ""#????????????? | | ???????????????# % ##" ""?????????????? | | ????????????????# = # " #??????????????? | | ???????????????????# ##?????????????? | | ??????????????????????# ##????????????? | | ??????????????????????### ##???????????? | | ???????????############# ###?????????? | | ??????????? ; !! g #?????????? | | ????????????????#!!!] = #####???### | | ????????????????#!=!/*! @ # ""#####X | | ????????????????#!!]]* !## # | | ????????????????# !" " ;#;####"# | | ????????????????######;#;; ##??#### %* | | ????????????????????# ## ##???????### | | ???????????????????# #? ???????????### | | ??????????????????# #?? #?????????????## | | ?????????????????# #??##???????????????## | | ????????????????# #?????????????????????##" | | ???????????????? #???????????????????????#""" | | ??????????????? ????????????????????????##" | | ?????????????? ?????????????????????????#"" | | ????????????????????????????????????????#""" | | ???????????????????????????????????????#""" | | ???????????????????????????????????????#""" | | ???????????????????????????????????????#"" | | ???????????????????????????????????????#""" | | ???????????????????????????????????????#"" | | ???????????????????????????????????????##"" | | ????????????????????????????????????????#"""" | | ????????????????????????????????????????## | | ?????????????????????????????????????????#" | | ?????????????????????????????????????????#"""" | | ?????????????????????????????????????????#"" | | ??????????????????????????????????????????" | +----------------------------------------------------+ Best States ------------- Heat Dissipation 25 Energy Generation 10 Energy Capacity 250 Matter Stores 356 Matter Capacity 1800 Sight Range 16 Terrain Scan Density 10 Armor Coverage 450 Evasion (%) 40 Targeting Accuracy 5 Recoil Reduction 2 Item Schematics ----------------- None Robot Schematics ------------------ None Fabricated ------------ Nothing Alien Tech Used ----------------- None Achievements -------------- None Challenges ------------ None Game ------ Seed DiametricAssaultStorm Manual? 0 Play Time 00:22:52 Cumulative 331.6 hours Start 2024.07.14 @ 21:01:20 End 2024.07.14 @ 21:20:17 Sessions 1 Manual Loads 0 Difficulty Rogue Special Mode None Game No. 233 Rogue 233 Adventurer 0 Explorer 0 Win Type - Total 26 Types 18/1/2/3/1/0/0/1/0 Lore% 79 Gallery% 89 Achievement% 93 Wizard Run 0 Options --------- Layout 1 ASCII 0 Keyboard 0 Movement Numpad Keybinds 0 Fullscreen 1 Font 24/Smallcaps Map View 50x35 Zoom Use 0% Tactical HUD 1 Map Filters NONE Filters NONE Steam 1 RUN: d07e357c-c406-4c72-bf63-1582e69d5c86